fUSD/lending_fUSD_20240421
["ID","MTS","AMOUNT","RATE_DAILY","PERIOD"]
[323133018,1713703562074,4000.0,0.0001324,2]
[323133019,1713703562096,1821.68191817,0.0001324,2]
[323133020,1713703812853,544.27,0.00012896,2]
[323133030,1713703831677,-155.0,0.00014772,2]
[323133032,1713703831686,-3877.29105005,0.00014773,2]
[323133035,1713703831731,-453.61585099,0.00014773,2]
[323133036,1713703831739,-1832.82,0.00014774,2]
[323133037,1713703831749,-4264.03894901,0.00014998,2]
[323133038,1713703831786,-796.15744275,0.00014998,2]
[323133039,1713703831798,-451.55568488,0.00014998,2]
[323133040,1713703831841,-538.88,0.00014998,2]
[323133041,1713703831853,-4733.07281994,0.00014998,2]
[323133042,1713703832005,-15054.4667413,0.00014998,2]
[323133043,1713703832028,-533.09789647,0.00014998,2]
[323133044,1713703832040,-778.63384695,0.00014998,2]
[323133045,1713703832052,-748.42002,0.00014998,2]
[323133048,1713703832087,-8781.87824367,0.00014998,2]
[323133050,1713703832100,-1084.27155015,0.00014998,2]
[323133052,1713703832110,-750.0,0.00015,2]
[323133054,1713703832119,-323.80854154,0.00015,2]
[323133056,1713703832128,-186.85,0.00015013,2]
[323133058,1713703832137,-150.0,0.0001509,2]
[323133060,1713703832146,-13337.01,0.00015091,2]
[323133062,1713703832155,-975.96,0.00015119,2]
[323133064,1713703832164,-150.0,0.00015123,2]
[323133066,1713703832173,-288.51,0.00015143,2]
[323133067,1713703832183,-544.27,0.0001516,2]
[323133069,1713703832193,-8986.52052507,0.0001529,2]
[323133071,1713703832202,-22511.9916,0.000153,2]
[323133073,1713703832211,-7500.0,0.000153,2]
[323133075,1713703832220,-1893.26169612,0.000153,2]
[323133077,1713703832229,-807.449,0.000153,2]
[323133079,1713703832238,-846.97,0.0001539,3]
[323133081,1713703832247,-2182.49036184,0.00015398,2]
[323133083,1713703832257,-2192.65866292,0.00015398,2]
[323133085,1713703832266,-437.0221954,0.00015398,2]
[323133087,1713703832275,-192.56707976,0.00015398,2]
[323133089,1713703832286,-1782.84985694,0.00015398,2]
[323133091,1713703832296,-13253.15293735,0.00015399,2]
[323133093,1713703832305,-233935.8439,0.000154,2]
[323133095,1713703832315,-17728.6784,0.000154,2]
[323133097,1713703832324,-647.748,0.000154,2]
[323133098,1713703832333,-150.0,0.000155,2]
[323133099,1713703832342,-1893.26169605,0.00015671,2]
[323133100,1713703832350,-178.42,0.00015752,2]
[323133101,1713703832359,-155.0,0.00016,2]
[323133102,1713703832368,-150.0,0.00016,2]
[323133103,1713703832377,-1000.0,0.00016,2]
[323133104,1713703832386,-1893.26169605,0.00016043,2]
[323133105,1713703832395,-195.0,0.00016091,2]
[323133106,1713703832404,-1023.57127657,0.00016109,2]
[323133107,1713703832413,-900.92,0.0001611,10]
[323133108,1713703832422,-200.0,0.00016291,2]
[323133109,1713703832431,-6254.84640997,0.00016337,2]
[323133110,1713703832440,-2524.49212644,0.00016338,2]
[323133111,1713703832448,-223.38662731,0.00016338,2]
[323133112,1713703832457,-200.0,0.00016397,2]
[323133113,1713703832466,-1000.0,0.00016397,2]
[323133115,1713703832476,-500.0,0.00016397,2]
[323133117,1713703832485,-500.0,0.00016397,2]
[323133119,1713703832494,-200.0,0.00016397,2]
[323133121,1713703832503,-800.0,0.00016411,2]
[323133123,1713703832513,-837.0,0.00016411,2]
[323133125,1713703832522,-539.0,0.00016411,2]
[323133127,1713703832531,-1893.26169605,0.00016414,2]
[323133129,1713703832543,-161.00693236,0.00016428,2]
[323133131,1713703832552,-151.35,0.00016428,2]
[323133133,1713703832561,-1762.31905022,0.00016437,2]
[323133135,1713703832570,-500.0,0.00016438,2]
[323133137,1713703832580,-572.33,0.00016438,2]
[323133139,1713703832589,-501.1103493,0.00016438,2]
[323133141,1713703832598,-630.34,0.00016438,2]
[323133143,1713703832607,-297.664057,0.00016438,2]
[323133145,1713703832616,-681.42,0.00016438,2]
[323133148,1713703832626,-538.75026227,0.00016438,2]
[323133150,1713703832636,-513.27,0.00016438,2]
[323133151,1713703832645,-500.0,0.00016438,2]
[323133153,1713703832654,-606.55,0.00016438,2]
[323133155,1713703832663,-500.0,0.00016438,2]
[323133157,1713703832673,-794.99,0.00016438,2]
[323133159,1713703832682,-500.0,0.00016438,2]
[323133162,1713703832692,-155.40521512,0.00016438,2]
[323133163,1713703832702,-667.15,0.00016438,2]
[323133164,1713703832712,-731.28,0.00016438,2]
[323133165,1713703832721,-500.0,0.00016438,2]
[323133166,1713703832729,-501.30902142,0.00016438,2]
[323133167,1713703832739,-500.0,0.00016438,2]
[323133168,1713703832748,-617.43,0.00016438,2]
[323133169,1713703832762,-403.09370585,0.00016438,2]
[323133170,1713703832771,-797.28,0.00016438,2]
[323133171,1713703832780,-870.35,0.00016438,2]
[323133172,1713703832792,-657.43,0.00016438,2]
[323133173,1713703832800,-682.55,0.00016438,2]
[323133174,1713703832810,-500.0,0.00016438,2]
[323133175,1713703832818,-500.0,0.00016438,2]
[323133176,1713703832829,-500.0,0.00016438,2]
[323133177,1713703832839,-500.0,0.00016438,2]
[323133178,1713703832849,-1076.85,0.00016438,2]
[323133179,1713703832859,-636.47,0.00016438,2]
[323133180,1713703832868,-500.0,0.00016438,2]
[323133181,1713703832878,-564.89,0.00016438,2]
[323133182,1713703832888,-500.0,0.00016438,2]
[323133183,1713703832897,-900.43,0.00016438,2]
[323133184,1713703832907,-500.0,0.00016438,2]
[323133185,1713703832916,-500.0,0.00016438,2]
[323133186,1713703832925,-818.54,0.00016438,2]
[323133187,1713703832935,-877.26,0.00016438,2]
[323133188,1713703832944,-500.0,0.00016438,2]
[323133189,1713703832953,-1070.54,0.00016438,2]
[323133190,1713703832962,-1070.54,0.00016438,2]
[323133191,1713703832972,-500.0,0.00016438,2]
[323133192,1713703832981,-1305.63,0.00016438,2]
[323133193,1713703832991,-649.52,0.00016438,2]
[323133194,1713703833000,-500.0,0.00016438,2]
[323133195,1713703833009,-500.0,0.00016438,2]
[323133196,1713703833021,-500.0,0.00016438,2]
[323133197,1713703833031,-986.71,0.00016438,2]
[323133198,1713703833042,-815.01,0.00016438,2]
[323133199,1713703833051,-1222.11,0.00016438,2]
[323133200,1713703833061,-500.0,0.00016438,2]
[323133201,1713703833071,-700.25,0.00016438,2]
[323133202,1713703833080,-1388.09,0.00016438,2]
[323133203,1713703833090,-537.33,0.00016438,2]
[323133204,1713703833100,-701.07,0.00016438,2]
[323133205,1713703833109,-500.0,0.00016438,2]
[323133206,1713703833118,-500.0,0.00016438,2]
[323133207,1713703833128,-875.52,0.00016438,2]
[323133208,1713703833137,-500.0,0.00016438,2]
[323133209,1713703833147,-500.0,0.00016438,2]
[323133210,1713703833155,-500.0,0.00016438,2]
[323133211,1713703833164,-500.0,0.00016438,2]
[323133212,1713703833174,-966.81,0.00016438,2]
[323133213,1713703833183,-500.0,0.00016438,2]
[323133214,1713703833192,-500.0,0.00016438,2]
[323133215,1713703833201,-500.0,0.00016438,2]
[323133216,1713703833210,-1112.61,0.00016438,2]
[323133217,1713703833219,-500.0,0.00016438,2]
[323133218,1713703833229,-787.21,0.00016438,2]
[323133219,1713703833238,-500.0,0.00016438,2]
[323133220,1713703833248,-920.72,0.00016438,2]
[323133221,1713703833257,-500.0,0.00016438,2]
[323133222,1713703833266,-500.0,0.00016438,2]
[323133223,1713703833276,-948.74,0.00016438,2]
[323133224,1713703833285,-500.0,0.00016438,2]
[323133225,1713703833295,-513.32,0.00016438,2]
[323133226,1713703833304,-702.95,0.00016438,2]
[323133227,1713703833313,-2016.61,0.00016438,2]
[323133228,1713703833322,-500.0,0.00016438,2]
[323133229,1713703833331,-500.0,0.00016438,2]
[323133230,1713703833340,-500.0,0.00016438,2]
[323133231,1713703833350,-1035.72,0.00016438,2]
[323133232,1713703833359,-500.0,0.00016438,2]
[323133233,1713703833368,-500.0,0.00016438,2]
[323133234,1713703833377,-798.22,0.00016438,2]
[323133235,1713703833386,-500.0,0.00016438,2]
[323133236,1713703833395,-1151.14,0.00016438,2]
[323133237,1713703833404,-500.0,0.00016438,2]
[323133238,1713703833414,-891.59,0.00016438,2]
[323133239,1713703833423,-534.24541149,0.00016438,2]
[323133240,1713703833432,-1881.96,0.00016438,2]
[323133241,1713703833442,-1284.68,0.00016438,2]
[323133242,1713703833450,-500.0,0.00016438,2]
[323133243,1713703833460,-746.21,0.00016438,2]
[323133244,1713703833469,-500.0,0.00016438,2]
[323133245,1713703833478,-528.29,0.00016438,2]
[323133246,1713703833488,-500.0,0.00016438,2]
[323133247,1713703833497,-500.0,0.00016438,2]
[323133248,1713703833507,-500.0,0.00016438,2]
[323133249,1713703833516,-1005.87,0.00016438,2]
[323133250,1713703833526,-1895.51,0.00016438,2]
[323133251,1713703833535,-952.01,0.00016438,2]
[323133252,1713703833545,-500.0,0.00016438,2]
[323133253,1713703833555,-500.0,0.00016438,2]
[323133254,1713703833564,-500.0,0.00016438,2]
[323133255,1713703833573,-500.0,0.00016438,2]
[323133256,1713703833583,-1290.82,0.00016438,2]
[323133257,1713703833592,-840.27,0.00016438,2]
[323133258,1713703833601,-500.0,0.00016438,2]
[323133259,1713703833611,-500.0,0.00016438,2]
[323133260,1713703833620,-690.15,0.00016438,2]
[323133261,1713703833630,-500.0,0.00016438,2]
[323133262,1713703833640,-500.0,0.00016438,2]
[323133263,1713703833650,-500.0,0.00016438,2]
[323133264,1713703833659,-500.0,0.00016438,2]
[323133265,1713703833668,-915.53,0.00016438,2]
[323133266,1713703833677,-500.0,0.00016438,2]
[323133267,1713703833687,-500.0,0.00016438,2]
[323133268,1713703833697,-959.32,0.00016438,2]
[323133269,1713703833706,-184.06756364,0.00016438,2]
[323133270,1713703833715,-720.36,0.00016438,2]
[323133271,1713703833725,-500.0,0.00016438,2]
[323133272,1713703833734,-500.0,0.00016438,2]
[323133273,1713703833744,-500.0,0.00016438,2]
[323133274,1713703833753,-500.0,0.00016438,2]
[323133275,1713703833762,-1127.34,0.00016438,2]
[323133276,1713703833772,-500.0,0.00016438,2]
[323133277,1713703833783,-712.54,0.00016438,2]
[323133278,1713703833793,-728.93,0.00016438,2]
[323133279,1713703833802,-500.0,0.00016438,2]
[323133280,1713703833811,-500.0,0.00016438,2]
[323133281,1713703833820,-500.0,0.00016438,2]
[323133282,1713703833829,-500.0,0.00016438,2]
[323133283,1713703833839,-500.0,0.00016438,2]
[323133284,1713703833848,-837.27,0.00016438,2]
[323133285,1713703833857,-1200.69,0.00016438,2]
[323133286,1713703833867,-500.0,0.00016438,2]
[323133287,1713703833877,-575.82,0.00016438,2]
[323133288,1713703833886,-500.0,0.00016438,2]
[323133289,1713703833895,-500.0,0.00016438,2]
[323133290,1713703833904,-1491.61,0.00016438,2]
[323133291,1713703833913,-500.0,0.00016438,2]
[323133292,1713703833922,-500.0,0.00016438,2]
[323133293,1713703833931,-500.0,0.00016438,2]
[323133294,1713703833941,-500.0,0.00016438,2]
[323133295,1713703833950,-500.0,0.00016438,2]
[323133296,1713703833959,-500.0,0.00016438,2]
[323133297,1713703833968,-729.42,0.00016438,2]
[323133298,1713703833977,-500.0,0.00016438,2]
[323133299,1713703833987,-500.0,0.00016438,2]
[323133300,1713703833996,-500.0,0.00016438,2]
[323133301,1713703834006,-1071.35,0.00016438,2]
[323133302,1713703834016,-500.0,0.00016438,2]
[323133303,1713703834030,-500.0,0.00016438,2]
[323133304,1713703834041,-981.15,0.00016438,2]
[323133305,1713703834050,-500.0,0.00016438,2]
[323133306,1713703834059,-500.0,0.00016438,2]
[323133307,1713703834069,-500.0,0.00016438,2]
[323133308,1713703834079,-766.16,0.00016438,2]
[323133309,1713703834088,-500.0,0.00016438,2]
[323133310,1713703834098,-500.0,0.00016438,2]
[323133311,1713703834108,-500.0,0.00016438,2]
[323133312,1713703834117,-500.0,0.00016438,2]
[323133313,1713703834126,-500.0,0.00016438,2]
[323133314,1713703834136,-500.0,0.00016438,2]
[323133315,1713703834145,-1289.16,0.00016438,2]
[323133316,1713703834154,-500.0,0.00016438,2]
[323133317,1713703834163,-500.0,0.00016438,2]
[323133318,1713703834173,-756.39,0.00016438,2]
[323133319,1713703834182,-796.74,0.00016438,2]
[323133320,1713703834191,-500.0,0.00016438,2]
[323133321,1713703834200,-500.0,0.00016438,2]
[323133322,1713703834209,-500.0,0.00016438,2]
[323133323,1713703834219,-500.0,0.00016438,2]
[323133324,1713703834228,-500.0,0.00016438,2]
[323133325,1713703834237,-500.0,0.00016438,2]
[323133326,1713703834246,-500.0,0.00016438,2]
[323133327,1713703834255,-500.0,0.00016438,2]
[323133328,1713703834264,-903.36,0.00016438,2]
[323133329,1713703834274,-500.0,0.00016438,2]
[323133330,1713703834283,-500.0,0.00016438,2]
[323133331,1713703834294,-726.79,0.00016438,2]
[323133332,1713703834303,-500.0,0.00016438,2]
[323133333,1713703834312,-500.0,0.00016438,2]
[323133334,1713703834321,-500.0,0.00016438,2]
[323133335,1713703834331,-316.34,0.00016438,2]
[323133336,1713703834342,-500.0,0.00016438,2]
[323133337,1713703834354,-867.78,0.00016438,2]
[323133338,1713703834365,-500.0,0.00016438,2]
[323133339,1713703834374,-500.0,0.00016438,2]
[323133340,1713703834383,-500.0,0.00016438,2]
[323133341,1713703834537,-500.0,0.00016438,2]
[323133342,1713703834570,-500.0,0.00016438,2]
[323133343,1713703834580,-959.32,0.00016438,2]
[323133344,1713703834589,-500.0,0.00016438,2]
[323133345,1713703834598,-500.0,0.00016438,2]
[323133346,1713703834606,-500.0,0.00016438,2]
[323133347,1713703834615,-500.0,0.00016438,2]
[323133348,1713703834624,-500.0,0.00016438,2]
[323133349,1713703834633,-500.0,0.00016438,2]
[323133350,1713703834642,-500.0,0.00016438,2]
[323133351,1713703834651,-500.0,0.00016438,2]
[323133352,1713703834660,-1030.26,0.00016438,2]
[323133353,1713703834669,-500.0,0.00016438,2]
[323133354,1713703834678,-1338.06,0.00016438,2]
[323133355,1713703834688,-500.0,0.00016438,2]
[323133356,1713703834697,-500.0,0.00016438,2]
[323133357,1713703834706,-500.0,0.00016438,2]
[323133358,1713703834715,-500.0,0.00016438,2]
[323133359,1713703834724,-500.0,0.00016438,2]
[323133360,1713703834734,-500.0,0.00016438,2]
[323133361,1713703834743,-500.0,0.00016438,2]
[323133362,1713703834752,-500.0,0.00016438,2]
[323133363,1713703834761,-500.0,0.00016438,2]
[323133364,1713703834771,-500.0,0.00016438,2]
[323133365,1713703834780,-645.21,0.00016438,2]
[323133366,1713703834789,-500.0,0.00016438,2]
[323133367,1713703834798,-500.0,0.00016438,2]
[323133368,1713703834808,-500.0,0.00016438,2]
[323133369,1713703834817,-500.0,0.00016438,2]
[323133370,1713703834827,-500.0,0.00016438,2]
[323133371,1713703834836,-705.19,0.00016438,2]
[323133372,1713703834845,-691.32,0.00016438,2]
[323133373,1713703834854,-500.0,0.00016438,2]
[323133374,1713703834864,-500.0,0.00016438,2]
[323133375,1713703834873,-500.0,0.00016438,2]
[323133376,1713703834883,-500.0,0.00016438,2]
[323133377,1713703834893,-150.0,0.00016438,2]
[323133378,1713703834902,-500.0,0.00016438,2]
[323133379,1713703834911,-500.0,0.00016438,2]
[323133380,1713703834921,-500.0,0.00016438,2]
[323133381,1713703834930,-643.31,0.00016438,2]
[323133382,1713703834939,-500.0,0.00016438,2]
[323133383,1713703834949,-500.0,0.00016438,2]
[323133384,1713703834958,-500.0,0.00016438,2]
[323133385,1713703834968,-500.0,0.00016438,2]
[323133386,1713703834978,-500.0,0.00016438,2]
[323133387,1713703834987,-500.0,0.00016438,2]
[323133388,1713703834996,-998.78,0.00016438,2]
[323133389,1713703835006,-1033.5,0.00016438,2]
[323133390,1713703835017,-715.09,0.00016438,2]
[323133391,1713703835028,-500.0,0.00016438,2]
[323133392,1713703835039,-500.0,0.00016438,2]
[323133393,1713703835049,-1195.92,0.00016438,2]
[323133394,1713703835061,-500.0,0.00016438,2]
[323133395,1713703835070,-195.43116842,0.00016438,2]
[323133396,1713703835081,-500.0,0.00016438,2]
[323133397,1713703835093,-500.0,0.00016438,2]
[323133398,1713703835102,-1091.89,0.00016438,2]
[323133399,1713703835112,-500.0,0.00016438,2]
[323133400,1713703835122,-500.0,0.00016438,2]
[323133401,1713703835131,-500.0,0.00016438,2]
[323133402,1713703835141,-924.95,0.00016438,2]
[323133403,1713703835151,-500.0,0.00016438,2]
[323133404,1713703835160,-500.0,0.00016438,2]
[323133405,1713703835170,-736.26,0.00016438,2]
[323133406,1713703835181,-631.94,0.00016438,2]
[323133407,1713703835191,-1041.24,0.00016438,2]
[323133408,1713703835201,-502.55188746,0.00016438,2]
[323133409,1713703835210,-1020.3,0.00016438,2]
[323133410,1713703835220,-500.0,0.00016438,2]
[323133411,1713703835230,-501.02006405,0.00016438,2]
[323133412,1713703835239,-536.71,0.00016438,2]
[323133413,1713703835248,-500.0,0.00016438,2]
[323133414,1713703835258,-500.0,0.00016438,2]
[323133415,1713703835267,-500.0,0.00016438,2]
[323133416,1713703835276,-501.20242098,0.00016438,2]
[323133417,1713703835285,-500.0,0.00016438,2]
[323133418,1713703835297,-159.73075525,0.00016438,2]
[323133419,1713703835306,-500.0,0.00016438,2]
[323133420,1713703835315,-500.0,0.00016438,2]
[323133421,1713703835325,-501.07,0.00016438,2]
[323133422,1713703835333,-501.06311932,0.00016438,2]
[323133423,1713703835343,-500.0,0.00016438,2]
[323133424,1713703835352,-815.09,0.00016438,2]
[323133425,1713703835362,-563.38595365,0.00016438,2]
[323133426,1713703835371,-500.0,0.00016438,2]
[323133427,1713703835380,-500.0,0.00016438,2]
[323133428,1713703835390,-556.84,0.00016438,2]
[323133429,1713703835399,-500.0,0.00016438,2]
[323133430,1713703835409,-1393.98,0.00016438,2]
[323133431,1713703835418,-500.0,0.00016438,2]
[323133432,1713703835428,-500.0,0.00016438,2]
[323133433,1713703835437,-957.57,0.00016438,2]
[323133434,1713703835446,-510.23212558,0.00016438,2]
[323133435,1713703835456,-500.0,0.00016438,2]
[323133436,1713703835465,-904.56,0.00016438,2]
[323133437,1713703835475,-921.66,0.00016438,2]
[323133438,1713703835484,-548.62,0.00016438,2]
[323133439,1713703835494,-1599.79,0.00016438,2]
[323133440,1713703835503,-500.0,0.00016438,2]
[323133441,1713703835513,-500.0,0.00016438,2]
[323133442,1713703835523,-500.0,0.00016438,2]
[323133443,1713703835532,-500.0,0.00016438,2]
[323133444,1713703835545,-500.0,0.00016438,2]
[323133445,1713703835553,-500.0,0.00016438,2]
[323133446,1713703835562,-503.87381549,0.00016438,2]
[323133447,1713703835571,-562.22,0.00016438,2]
[323133448,1713703835580,-500.0,0.00016438,2]
[323133449,1713703835589,-500.0,0.00016438,2]
[323133450,1713703835599,-544.99,0.00016438,2]
[323133451,1713703835609,-701.7,0.00016438,2]
[323133452,1713703835618,-552.41,0.00016438,2]
[323133453,1713703835627,-500.0,0.00016438,2]
[323133454,1713703835637,-500.0,0.00016438,2]
[323133455,1713703835646,-500.0,0.00016438,2]
[323133456,1713703835656,-954.11,0.00016438,2]
[323133457,1713703835665,-500.0,0.00016438,2]
[323133458,1713703835675,-1515.84,0.00016438,2]
[323133459,1713703835684,-500.0,0.00016438,2]
[323133460,1713703835694,-1847.98,0.00016438,2]
[323133461,1713703835704,-353.18127118,0.00016438,2]
[323133462,1713703835713,-818.41,0.00016438,2]
[323133463,1713703835723,-500.0,0.00016438,2]
[323133464,1713703835732,-9640.44,0.00016438,2]
[323133465,1713703835741,-806.22,0.00016438,2]
[323133466,1713703835751,-500.0,0.00016438,2]
[323133467,1713703835761,-4313.86,0.00016438,2]
[323133468,1713703835771,-1307.97,0.00016438,2]
[323133469,1713703835780,-218.77,0.00016438,2]
[323133470,1713703835792,-744.07,0.00016438,2]
[323133471,1713703835801,-841.31,0.00016438,2]
[323133472,1713703835811,-661.88,0.00016438,2]
[323133473,1713703835820,-500.0,0.00016438,2]
[323133474,1713703835830,-630.09101359,0.00016438,2]
[323133475,1713703835839,-500.0,0.00016438,2]
[323133476,1713703835849,-500.31,0.00016438,2]
[323133477,1713703835859,-500.0,0.00016438,2]
[323133478,1713703835868,-2870.67,0.00016438,2]
[323133479,1713703835878,-500.0,0.00016438,2]
[323133480,1713703835888,-500.0,0.00016438,2]
[323133481,1713703835898,-500.0,0.00016438,2]
[323133482,1713703835908,-564.96,0.00016438,2]
[323133483,1713703835918,-1109.92,0.00016438,2]
[323133484,1713703835927,-500.0,0.00016438,2]
[323133485,1713703835936,-781.83,0.00016438,2]
[323133486,1713703835946,-500.0,0.00016438,2]
[323133487,1713703835955,-2136.36,0.00016438,2]
[323133488,1713703835965,-686.02,0.00016438,2]
[323133489,1713703835975,-2698.1,0.00016438,2]
[323133490,1713703835985,-673.9,0.00016438,2]
[323133491,1713703835994,-522.53,0.00016438,2]
[323133492,1713703836004,-500.0,0.00016438,2]
[323133493,1713703836015,-794.51,0.00016438,2]
[323133494,1713703836028,-500.0,0.00016438,2]
[323133495,1713703836038,-988.09,0.00016438,2]
[323133496,1713703836049,-687.74,0.00016438,2]
[323133497,1713703836059,-500.0,0.00016438,2]
[323133498,1713703836069,-834.62,0.00016438,2]
[323133499,1713703836079,-306.37,0.00016438,2]
[323133500,1713703836089,-566.87,0.00016438,2]
[323133501,1713703836100,-1366.95,0.00016438,2]
[323133502,1713703836111,-1307.05,0.00016438,2]
[323133503,1713703836120,-633.04,0.00016438,2]
[323133504,1713703836130,-1063.71,0.00016438,2]
[323133505,1713703836139,-726.14,0.00016438,2]
[323133506,1713703836149,-500.0,0.00016438,2]
[323133507,1713703836158,-657.69,0.00016438,2]
[323133508,1713703836167,-627.06,0.00016438,2]
[323133509,1713703836176,-663.49,0.00016438,2]
[323133510,1713703836186,-3069.34,0.00016438,2]
[323133511,1713703836195,-1206.78,0.00016438,2]
[323133512,1713703836205,-221.78,0.00016438,2]
[323133513,1713703836214,-1667.8,0.00016438,2]
[323133514,1713703836223,-1235.07,0.00016438,2]
[323133515,1713703836233,-785.6,0.00016438,2]
[323133516,1713703836242,-1777.79,0.00016438,2]
[323133517,1713703836251,-1164.03,0.00016438,2]
[323133518,1713703836261,-690.91,0.00016438,2]
[323133519,1713703836270,-702.79,0.00016438,2]
[323133520,1713703836279,-793.56,0.00016438,2]
[323133521,1713703836289,-500.0,0.00016438,2]
[323133522,1713703836299,-1369.11,0.00016438,2]
[323133523,1713703836309,-1369.11,0.00016438,2]
[323133524,1713703836318,-1011.83,0.00016438,2]
[323133525,1713703836328,-633.58,0.00016438,2]
[323133526,1713703836337,-500.0,0.00016438,2]
[323133527,1713703836347,-500.0,0.00016438,2]
[323133528,1713703836357,-934.07,0.00016438,2]
[323133529,1713703836366,-560.63,0.00016438,2]
[323133530,1713703836376,-804.03,0.00016438,2]
[323133531,1713703836385,-1353.25,0.00016438,2]
[323133532,1713703836395,-865.97,0.00016438,2]
[323133533,1713703836404,-649.86,0.00016438,2]
[323133534,1713703836413,-500.0,0.00016438,2]
[323133535,1713703836423,-1369.4,0.00016438,2]
[323133536,1713703836432,-747.02,0.00016438,2]
[323133537,1713703836441,-500.0,0.00016438,2]
[323133538,1713703836451,-1369.91,0.00016438,2]
[323133539,1713703836460,-500.0,0.00016438,2]
[323133540,1713703836469,-446.07604215,0.00016438,2]
[323133541,1713703836477,-1082.87,0.00016438,2]
[323133542,1713703836485,-1282.09,0.00016438,2]
[323133543,1713703836493,-500.0,0.00016438,2]
[323133544,1713703836501,-11591.68,0.00016438,2]
[323133545,1713703836510,-500.0,0.00016438,2]
[323133546,1713703836519,-500.0,0.00016438,2]
[323133547,1713703836529,-500.0,0.00016438,2]
[323133548,1713703836538,-500.0,0.00016438,2]
[323133549,1713703836548,-780.15,0.00016438,2]
[323133550,1713703836557,-1338.42,0.00016438,2]
[323133551,1713703836566,-500.0,0.00016438,2]
[323133552,1713703836575,-500.0,0.00016438,2]
[323133553,1713703836585,-500.0,0.00016438,2]
[323133554,1713703836594,-1407.68,0.00016438,2]
[323133555,1713703836603,-500.0,0.00016438,2]
[323133556,1713703836612,-897.72,0.00016438,2]
[323133557,1713703836622,-500.0,0.00016438,2]
[323133558,1713703836631,-881.82,0.00016438,2]
[323133559,1713703836640,-1814.96,0.00016438,2]
[323133560,1713703836649,-506.59,0.00016438,2]
[323133561,1713703836658,-500.0,0.00016438,2]
[323133562,1713703836667,-1994.37,0.00016438,2]
[323133563,1713703836677,-500.06,0.00016438,2]
[323133564,1713703836686,-837.83,0.00016438,2]
[323133565,1713703836695,-641.08,0.00016438,2]
[323133566,1713703836705,-774.16,0.00016438,2]
[323133567,1713703836714,-500.0,0.00016438,2]
[323133568,1713703836724,-679.73,0.00016438,2]
[323133569,1713703836733,-1410.25,0.00016438,2]
[323133570,1713703836743,-975.76,0.00016438,2]
[323133571,1713703836752,-599.79,0.00016438,2]
[323133572,1713703836761,-1592.34,0.00016438,2]
[323133573,1713703836771,-1165.17,0.00016438,2]
[323133574,1713703836780,-536.61,0.00016438,2]
[323133575,1713703836792,-500.0,0.00016438,2]
[323133576,1713703836802,-1112.17,0.00016438,2]
[323133577,1713703836811,-500.0,0.00016438,2]
[323133578,1713703836821,-177.6,0.00016438,2]
[323133579,1713703836830,-500.0,0.00016438,2]
[323133580,1713703836840,-734.8,0.00016438,2]